Cogmind - Beta 16.1 @@@ ROGUE MODE // 2026.02.19 @ 02:45:10 Player: rootmos Result: Destroyed by G-47 Trooper with Particle Gun Performance ------------- Evolutions (2) 1000 Regions Visited (4) 800 Robots Destroyed (64) 320 Value Destroyed (1685) 1685 Prototype IDs (0) 0 Alien Tech Used (0) 0 Bonus (0) 0 TOTAL SCORE: 3805 Bonus ------- None Cogmind --------- Core Integrity 0/550 Matter 300/300 Energy 100/100 System Corruption 0% Temperature Cool (9) Movement Core (200) Ox3 Location -8/Materials Parts ------- > --- POWER (1) -------- (None) > --- PROPULSION (4) --- (None) > --- UTILITY (4) ------ Medium Storage Unit Targeting Computer > --- WEAPON (2) ------- (None) > --- INVENTORY (10) --- Medium Storage Unit High-capacity Battery (250) Weight Redist. System Recoil Stabilizer Peak State ------------ > --- POWER ------------ Improved Ion Engine > --- PROPULSION ------- Aluminum Leg Aluminum Leg Aluminum Leg Aluminum Leg > --- UTILITY ---------- Cooling System Medium Storage Unit Structural Scanner Targeting Computer > --- WEAPON ----------- Pulse Rifle Improved Light Cannon > --- INVENTORY -------- Improved Ion Engine Aluminum Leg Heat Sink Large Storage Unit High-capacity Battery Weight Redist. System Recoil Stabilizer Heavy EM Pulse Gun [Rating: 17] Favorites ----------- Power Improved Ion Engine Engine Improved Ion Engine Propulsion Aluminum Leg Leg Aluminum Leg Utility Small Storage Unit Device Seismic Detector Storage Small Storage Unit Processor Targeting Computer Weapon Pulse Rifle Energy Gun Pulse Rifle Energy Cannon Beam Cannon Ballistic Gun Assault Rifle Ballistic Cannon Improved Light Cannon Launcher Rocket Launcher Build | -11 -10 -9 -9 -8 ------- Run | Yrd Mat Mat Min Mat Slots Evolved 4 | . . 2 . 2 Power . | . . . . . Propulsion 2 | . . 1 . 1 Utility 2 | . . 1 . 1 Weapon . | . . . . . Parts Attached 46 | . 18 21 . 7 Power 7 | . 3 4 . . Engine 7 | . 3 4 . . Core . | . . . . . Reactor . | . . . . . Propulsion 13 | . 7 4 . 2 Treads . | . . . . . Leg 13 | . 7 4 . 2 Wheel . | . . . . . Hover . | . . . . . Flight . | . . . . . Utility 10 | . 2 6 . 2 Device 6 | . 1 3 . 2 Storage 2 | . . 2 . . Processor 2 | . 1 1 . . Hackware . | . . . . . Protection . | . . . . . Artifact . | . . . . . Weapon 16 | . 6 7 . 3 Energy Gun 8 | . 4 2 . 2 Energy Cannon 3 | . 1 1 . 1 Ballistic Gun 2 | . 1 1 . . Ballistic Cannon 2 | . . 2 . . Launcher 1 | . . 1 . . Special Weapon . | . . . . . Impact Weapon . | . . . . . Slashing Weapon . | . . . . . Piercing Weapon . | . . . . . Special Melee Weapon . | . . . . . Unidentified Prototypes . | . . . . . Parts Lost 26 | . 6 5 . 15 Power 4 | . 2 . . 2 Propulsion 7 | . . 2 . 5 Utility 5 | . . 2 . 3 Weapon 10 | . 4 1 . 5 Highest Loss Streak 13 | . 3 2 . 13 To Critical Strikes . | . . . . . Average Backups 7 | . 7 8 10 7 Power 1 | . 1 1 1 . Propulsion 1 | . 2 1 2 . Utility 3 | . 1 4 6 4 Weapon 1 | . . 1 1 1 Tool/Special . | . . . . . Unused Backups 22 | . 12 5 . 5 Power 2 | . 1 1 . . Propulsion 7 | . 6 1 . . Utility 8 | . 2 1 . 5 Weapon 5 | . 3 2 . . Tool/Special . | . . . . . Average Slot Usage (%) 93 | . 98 96 100 70 Engine 11 | . 13 11 11 6 Leg 28 | . 28 30 33 21 Device 13 | . 9 17 11 11 Storage 11 | . 14 11 11 9 Processor 4 | . 3 4 11 9 Energy Gun 10 | . 13 10 11 6 Energy Cannon 1 | . . 2 . 1 Ballistic Gun 6 | . 13 4 . . Ballistic Cannon 3 | . . 4 11 5 Peak Build Rating 17 | . 7 15 15 17 Average Rating 11 | . 6 13 15 11 On Entrance 9 | 6 6 7 15 15 Avg Prop Armor Cover (%) . | . . . . . Naked Turns . | . . . . . Heaviest Build 36 | 12 15 36 26 27 Greatest Support 40 | 20 20 30 30 40 Greatest Overweight (x) 3 | . . 1 . 3 Average Overweight (x) . | . . . . . Largest Inventory Capacity 15 | . 8 15 10 10 Average Capacity 8 | . 8 8 10 10 Most Carried 10 | . 8 10 10 10 Average Carried 7 | . 7 8 10 7 Final Capacity 10 | 8 8 10 10 10 Final Carried 10 | 6 8 10 10 4 Class Distribution -------------------- 50% | Mutant 49% | Scavenger-Mutant Dominant Class ---------------- Mutant | -10/Materials Scavenger-Mutant | -9/Materials Scavenger-Mutant | -9/Mines Scavenger-Mutant | -8/Materials Resources | -11 -10 -9 -9 -8 ----------- Run | Yrd Mat Mat Min Mat Matter Collected 1040 | 200 318 408 . 114 Remotely . | . . . . . Salvage Created 1890 | . 803 967 . 120 Parts 123 | . 42 62 . 19 Haulers Intercepted 1 | . 1 . . . Recyclers Shooed . | . . . . . Parts Field Recycled . | . . . . . Retrieved Matter . | . . . . . Parts Self-Destructed . | . . . . . Prevented . | . . . . . Parts Restored . | . . . . . Kills | -11 -10 -9 -9 -8 ------- Run | Yrd Mat Mat Min Mat Combat Hostiles Destroyed 58 | . 19 30 . 9 Guns 37 | . 18 14 . 5 Cannons 16 | . . 13 . 3 AOE 4 | . 1 3 . . Classes Destroyed 9 | . 5 3 . 1 Worker 2 | . 1 1 . . Builder 1 | . . 1 . . Tunneler 1 | . 1 . . . Hauler 1 | . 1 . . . Watcher 1 | . . . . 1 Swarmer 22 | . 6 8 . 8 Grunt 27 | . 13 13 . 1 Duelist 1 | . . 1 . . Sentry 8 | . . 8 . . Best Kill Streak 8 | . 5 8 . 7 Combat Bots Only 7 | . 5 6 . 7 Max Kills in Single Turn 4 | . 2 4 . 1 Gunslinging . | . . . . . Exploded 3 | . 1 3 . . Melee . | . . . . . Uniques/NPCs Destroyed . | . . . . . Combat | -11 -10 -9 -9 -8 -------- Run | Yrd Mat Mat Min Mat Hostile Shots Fired 391 | . 106 119 . 166 Missed 114 | . 25 45 . 44 Hits 277 | . 81 74 . 122 Projectile 277 | . 81 74 . 122 Critical Strikes 7 | . . 1 . 6 Damage Taken 3464 | . 853 910 . 1701 Core 821 | . 159 109 . 553 Absorbed by Shields . | . . . . . Core Remaining (%) 69 | 100 36 . 72 . Volleys Fired 146 | . 56 56 . 34 Largest 2 | . 2 2 . 2 Hottest 123 | . 60 120 . 123 Shots Fired 283 | . 108 112 . 63 Gun 208 | . 108 74 . 26 Cannon 73 | . . 36 . 37 Launcher 2 | . . 2 . . Special . | . . . . . Kinetic 133 | . 68 45 . 20 Thermal 89 | . . 50 . 39 Explosive 2 | . . 2 . . Electromagnetic 59 | . 40 15 . 4 Robot Hit Streak 11 | . 10 11 . 9 Robot Miss Streak 7 | . 7 4 . 2 Penetration Max . | . . . . . Secondary Targets 4 | . 3 1 . . Max Gunslinging Chain 1 | . 1 1 . . Shots Hit Robots 182 | . 63 77 . 42 Core Hits 95 | . 36 40 . 19 Critical Kills . | . . . . . Critical Parts Destroyed 1 | . 1 . . . Critical Strikes 4 | . 1 2 . 1 Burn 2 | . . 1 . 1 Destroy 1 | . 1 . . . Blast 1 | . . 1 . . Melee Attacks . | . . . . . Impact . | . . . . . Slashing . | . . . . . Piercing . | . . . . . Sneak Attacks . | . . . . . Combat Hostiles . | . . . . . Follow-up Attacks . | . . . . . Damage Inflicted 3365 | . 841 1705 . 819 Guns 1909 | . 781 858 . 270 Cannons 984 | . . 485 . 499 Explosions 421 | . 59 362 . . Melee . | . . . . . Ramming 51 | . 1 . . 50 Kinetic 1291 | . 471 564 . 256 Thermal 1201 | . 59 677 . 465 Explosive 324 | . . 324 . . Electromagnetic 498 | . 310 140 . 48 Impact . | . . . . . Slashing . | . . . . . Piercing . | . . . . . Highest Corruption . | . . . . . Average Corruption . | . . . . . Corruption Purged . | . . . . . Corruption Blocked . | . . . . . Overload Shots . | . . . . . Overflow Damage 60 | . . 38 . 22 Projectiles 22 | . . . . 22 Explosions 38 | . . 38 . . Melee . | . . . . . Knockbacks 10 | . . 3 . 7 Impact 1 | . . . . 1 Kinetic 8 | . . 3 . 5 Secondary 1 | . . . . 1 Self-Inflicted Damage 49 | . . 35 . 14 Shots 1 | . . 1 . . Rammed 47 | . . . . 47 Targets Rammed 54 | . 1 . . 53 Kicked 7 | . 1 . . 6 Crushed . | . . . . . Highest Temperature 335 | . 40 21 . 335 Average Temperature 74 | . 14 7 . 121 Received Heat Transfer 1593 | . 366 345 . 882 Effects 1 | . . . . 1 Energy Bleed 1 | . . . . 1 Siege Activations . | . . . . . Martial Activations . | . . . . . Shielding Activations . | . . . . . Robots Disrupted . | . . . . . Combat Hostiles . | . . . . . Robots Corrupted . | . . . . . Combat Hostiles . | . . . . . Parts Fried . | . . . . . Impact Corruptions . | . . . . . Robots Melted 1 | . . . . 1 Combat Hostiles 1 | . . . . 1 Parts Melted 2 | . . . . 2 Heat Transferred 2616 | . 50 1493 . 1073 Parts Sabotaged . | . . . . . Parts Stolen . | . . . . . Parts Stripped . | . . . . . Power Chain Reactions 2 | . 1 1 . . Alert | -11 -10 -9 -9 -8 ------- Run | Yrd Mat Mat Min Mat Maximum Alert Level 1 | . . 1 . . Low Security (%) 79 | . 100 58 100 100 Level 1 20 | . . 41 . . Level 2 . | . . . . . Level 3 . | . . . . . Level 4 . | . . . . . Level 5 . | . . . . . High Security . | . . . . . Max Security . | . . . . . Peak Influence 398 | . 152 398 151 138 Initial 151 | . . 37 151 42 Average 122 | . 63 184 133 40 Influence Increases 1771 | . 588 960 . 223 Destroy 0b10 Robot/C 1160 | . 380 600 . 180 Destroy 0b10 Robot/NC 30 | . 15 10 . 5 Destroy Leader 264 | . 72 170 . 22 Successful Hack 18 | . 16 2 . . Disable Machine 90 | . 30 60 . . Destroy Structure 29 | . . 28 . 1 Lose Combat Pursuer 180 | . 75 90 . 15 Influence Decreases 1771 | . 498 662 277 334 Entered New Map 359 | . . 53 237 69 Time Decay 1127 | . 386 559 40 142 Lost Part 233 | . 60 50 . 123 Purge Threat 52 | . 52 . . . Squads Dispatched 9 | . 4 5 . . Investigation 5 | . 4 1 . . Extermination . | . . . . . Reinforcement 4 | . . 4 . . Assault . | . . . . . Garrison . | . . . . . Intercept . | . . . . . Searches Triggered . | . . . . . Construction Impeded . | . . . . . Haulers Reinforced . | . . . . . Active Scanning Responses . | . . . . . Cargo Convoy Interrupts . | . . . . . Stealth | -11 -10 -9 -9 -8 --------- Run | Yrd Mat Mat Min Mat Distress Signals 7 | . 1 5 . 1 Communications Jammed . | . . . . . Distress Signals . | . . . . . Times Spotted 88 | . 31 43 . 14 Peak Tracking Total 9 | . 6 7 . 9 Tactical Retreats 9 | . 5 3 . 1 Traps | -11 -10 -9 -9 -8 ------- Run | Yrd Mat Mat Min Mat Traps Triggered 5 | . 4 1 . . Indirectly . | . . . . . Trap Hack Attempts . | . . . . . Triggered . | . . . . . Disarmed . | . . . . . Reprogrammed . | . . . . . Reused . | . . . . . Traps Extracted . | . . . . . Installed . | . . . . . Triggered . | . . . . . Machines | -11 -10 -9 -9 -8 ---------- Run | Yrd Mat Mat Min Mat Machines Disabled 6 | . 2 4 . . Max in Single Turn 1 | . 1 1 . . Machines Repaired . | . . . . . Machines Dismantled . | . . . . . Machines Sabotaged . | . . . . . Overloaded Fab Kills . | . . . . . Hacking | -11 -10 -9 -9 -8 --------- Run | Yrd Mat Mat Min Mat Machines Accessed 8 | . 3 5 . . Terminals 7 | . 3 4 . . Fabricators . | . . . . . Repair Stations . | . . . . . Recycling Units . | . . . . . Scanalyzers 1 | . . 1 . . Garrison Access . | . . . . . Total Hacks 14 | . 5 9 . . Successful 10 | . 5 5 . . Failed 3 | . . 3 . . Catastrophic . | . . . . . Database Lockouts 1 | . . 1 . . Manual 1 | . . 1 . . Terminals 10 | . 5 5 . . Fabricators . | . . . . . Repair Stations . | . . . . . Recycling Units . | . . . . . Scanalyzers 4 | . . 4 . . Garrison Access . | . . . . . Terminal Hacks 8 | . 5 3 . . Record 3 | . 1 2 . . Emergency Access Points 2 | . 1 1 . . Alert Level 1 | . 1 . . . Unreport Threat 1 | . 1 . . . Locate Traps 1 | . 1 . . . Fabricator Hacks . | . . . . . Repair Station Hacks . | . . . . . Recycling Unit Hacks . | . . . . . Scanalyzer 2 | . . 2 . . Insert Component 1 | . . 1 . . Analyze 1 | . . 1 . . Garrison Access Hacks . | . . . . . Unauthorized Hacks . | . . . . . Terminals . | . . . . . Fabricators . | . . . . . Repair Stations . | . . . . . Recycling Units . | . . . . . Scanalyzers . | . . . . . Garrison Access . | . . . . . Data Cores Recovered . | . . . . . Used . | . . . . . Hacking Detections 4 | . 1 3 . . Full Trace Events . | . . . . . Feedback Events . | . . . . . Feedback Blocked . | . . . . . Robot Schematics Acquired . | . . . . . Robots Built . | . . . . . Authchips . | . . . . . Time . | . . . . . Total Robot Build Rating . | . . . . . Part Schematics Acquired 1 | . . 1 . . Parts Built . | . . . . . Authchips . | . . . . . Time . | . . . . . Total Part Build Rating . | . . . . . Part Studies Acquired . | . . . . . Parts Repaired . | . . . . . Time . | . . . . . Parts Recycled . | . . . . . Recycled Matter . | . . . . . Retrieved Matter . | . . . . . Retrieved Components . | . . . . . Parts Scanalyzed 1 | . . 1 . . Part Schematics Acquired 1 | . . 1 . . Parts Damaged . | . . . . . Bothacking | -11 -10 -9 -9 -8 ------------ Run | Yrd Mat Mat Min Mat Used RIF Installer . | . . . . . Robots Hacked . | . . . . . Non-combat . | . . . . . Combat . | . . . . . Robot Hacks Applied . | . . . . . Relay Couplers Released . | . . . . . Fabnet Peak Effective % . | . . . . . Robots Rewired . | . . . . . Allies Hacked . | . . . . . Hacks Repelled . | . . . . . Allies | -11 -10 -9 -9 -8 -------- Run | Yrd Mat Mat Min Mat Total Allies . | . . . . . Largest Group . | . . . . . Highest-Rated Group . | . . . . . Highest-Rated Ally . | . . . . . Total Orders . | . . . . . Ally Attacks . | . . . . . Total Damage . | . . . . . Kills . | . . . . . Allies Corrupted . | . . . . . Allies Melted . | . . . . . Intel | -11 -10 -9 -9 -8 ------- Run | Yrd Mat Mat Min Mat Active Infowar (turns) 2196 | . 811 1009 . 376 Sensors 16 | . . 16 . . Structural 376 | . . . . 376 Seismic 1804 | . 811 993 . . Robot Analysis Total . | . . . . . Derelict Logs Recovered . | . . . . . Drone Launches . | . . . . . Drone Recoveries . | . . . . . Exploration | -11 -10 -9 -9 -8 ------------- Run | Yrd Mat Mat Min Mat Turns Passed 3353 | . 1140 1671 87 455 Spaces Moved 2033 | 1 709 1065 72 186 Core 1 | . . . . 1 Treads . | . . . . . Legs 2032 | 1 709 1065 72 185 Wheels . | . . . . . Hover . | . . . . . Flight . | . . . . . Fastest Speed 120 | 120 120 120 120 120 Average Speed 125 | 120 120 130 120 124 Slowest Speed 260 | 120 120 190 120 260 Overloaded Moves . | . . . . . Propulsion Burnouts . | . . . . . Robots Hopped . | . . . . . Potential Cave-ins . | . . . . . Cave-ins Triggered . | . . . . . Exploration Rate (%) 39 | 2 80 77 21 17 Regions Visited 4 Branch Regions 1 Pre-discovered Areas . | . . . . . Known Exits Taken . | . . . . . Unknown Exits Taken 4 | 1 1 1 1 . Scrap Searched 1 | . . . 1 . Spaces Dug . | . . . . . Terrain Destroyed 23 | . . 22 . 1 Melee . | . . . . . Projectile 1 | . . . . 1 AOE 22 | . . 22 . . Terrain Rammed . | . . . . . Walls Destroyed . | . . . . . Machines Disabled . | . . . . . Actions | -11 -10 -9 -9 -8 --------- Run | Yrd Mat Mat Min Mat Total 2512 | . 897 1249 72 294 Wait 150 | . 91 56 1 2 Move 2029 | . 708 1064 71 186 Hop . | . . . . . Pick Up 36 | . 11 22 . 3 Fast Attach 4 | . 2 2 . . Attach 20 | . 5 5 . 10 Detach 1 | . . . . 1 Swap 32 | . 11 18 . 3 Drop 39 | . 12 25 . 2 Fire 146 | . 56 56 . 34 Melee . | . . . . . Ram 47 | . . . . 47 Kick 7 | . 1 . . 6 Crush . | . . . . . Escape Stasis . | . . . . . Rewire 1 | . . 1 . . Trap . | . . . . . Miscellaneous . | . . . . . Route ------- -11/Scrapyard -10/Materials (discovered 4 exits: *Mat x3 / [*Min]) -9/Materials (discovered 7 exits: *Mat x3 / [*Min x2] / [*Sto x2]) -9/Mines -8/Materials History --------- Turn | Location | Event 1 | -11/Scrapyard | Discovered new exit (range 0) 1 | -11/Scrapyard | Entered Materials 61 | -10/Materials | Discovered new exit (range 7) 109 | -10/Materials | Discovered new exit (range 10) 250 | -10/Materials | Lost 3 parts (1p2w) 309 | -10/Materials | Build established: Mutant 501 | -10/Materials | Derelicts attacked the area 858 | -10/Materials | Discovered new exit (range 5) 1038 | -10/Materials | Core integrity fell below 50% 1091 | -10/Materials | Discovered new exit (range 15) 1141 | -10/Materials | Entered another Materials area 1141 | -9/Materials | Evolved 2 slots: Propulsion x1, Utility x1 1329 | -9/Materials | Discovered new exit (range 8) 1438 | -9/Materials | Discovered new exit (range 14) 2068 | -9/Materials | Build established: Scavenger-Mutant 2089 | -9/Materials | Discovered new exit (range 10) 2338 | -9/Materials | Discovered new exit (range 9) 2443 | -9/Materials | Discovered new exit (range 5) 2628 | -9/Materials | Discovered new exit (range 16) 2764 | -9/Materials | Discovered new exit (range 10) 2775 | -9/Materials | Central database locked down 2812 | -9/Materials | Entered Mines 2883 | -9/Mines | Discovered new exit (range 6) 2899 | -9/Mines | Entered Materials 2899 | -8/Materials | Evolved 2 slots: Propulsion x1, Utility x1 3094 | -8/Materials | Destroyed 7 combat bots 3281 | -8/Materials | Core integrity fell below 50% 3313 | -8/Materials | Core integrity fell below 20% 3325 | -8/Materials | Lost 13 parts (2p4n2u5w) 3354 | -8/Materials | Destroyed by G-47 Trooper with Particle Gun Last Messages --------------- 03256_ Aluminum Leg destroyed. 03258_ Slammed into G-47 Trooper. 03258_ Destabilizing: Core damaged (-22). 03260_ Slammed into G-47 Trooper. 03266_ Pulse Rifle destroyed. 03268_ Slammed into G-47 Trooper. 03276_ Destabilizing: System interference. 03276_ Structural Scanner temporarily disabled. 03276_ Targeting Computer temporarily disabled. 03280_ Slammed into G-47 Trooper. 03290_ G-47 Trooper knocked back. 03290_ Critical hit (Burn: +37). 03292_ Slammed into G-47 Trooper. 03294_ Structural Scanner destroyed. 03296_ Slammed into G-47 Trooper. 03318_ Critical hit (Burn: +37). 03320_ Slammed into G-47 Trooper. 03322_ Targeting Computer broken. 03322_ Destabilizing: Short circuit. 03324_ Slammed into G-47 Trooper. Map ----- +----------------------------------------------------+ | ????????????????????????????? # + """# | | ????????????????????????????? # # #### | | ?????????????????????????????## # #### | | ?????????????????????????????## # ##?? | | ?????????????????????????????## # ##?? | | ?????????????????????????????########### ##?? | | ??????????????????# #????????########### ###? | | ??????????????????#+#????????????????### ###? | | ?????????????????? =]????????????????## ##? | | ?????????????????? ????????????????## ##? | | ??????????????????? !????????########## " ##? | | ??????????????????? !????????########## ##? | | ??????????????????? !????????##]]!!!!## ##? | | ??????????????????? ####????##]]!!!!#### ####? | | ?????????????????? ########## #### ####? | | ??????????????????##+#T######## #### ##??? | | ??????????????????## ##??? | | ??????????????? #### ##??? | | ??????????????? #### ##??? | | ??????????????? # % % ##??? | | ???????# #% %% ####+#####+##### ##??? | | ??????######+#### % %%#%%%%%%## # ##??? | | ??????## %+%"""% ## # ##??? | | ??????## ##%"T"%%## # ##??? | | ??????##+##+### ##%" "%%## # ##??? | | ?????? # ##%%@ %!## # ##??? | | ????????????? # ##%mg%%%## # ##??? | | ????????????? # #####+####+###### ##??? | | ????????????? + [[= #### ##??? | | ????????????? # **%[ ##########??? | | ????????????? # #######+####+############??? | | ????????????? ##+#######/ * *=== ##???????? | | ????????????? # ?## [=#[ % ##???????? | | ??????????????????????## " "==#=[ ##???????? | | ??????????????????????## "R" !# ##???????? | | ??????????????????????## """ # ##???????? | | ??????????????????????## !# ##???????? | | ??????????????????????#################???????? | | ??????????????????????#################???????? | | | | | | | | | | | | | | | | | | | | | | | +----------------------------------------------------+ Best States ------------- Heat Dissipation 53 Energy Generation 12 Energy Capacity 265 Matter Stores 300 Matter Capacity 300 Sight Range 16 Robot Scan Range 14 Terrain Scan Density 10 Evasion (%) 55 Targeting Accuracy 5 Item Schematics ----------------- Aluminum Leg | -9/Materials | Scanalyzed Robot Schematics ------------------ None Fabricated ------------ Nothing Repaired ---------- Nothing Studied --------- None Alien Tech Used ----------------- None Achievements -------------- None Challenges ------------ None Game ------ Seed TechGravjetSpiker Manual? 0 Play Time 00:55:18 Cumulative 113.0 hours Start 2026.02.14 @ 10:26:29 End 2026.02.19 @ 02:45:10 Sessions 10 Manual Loads 0 Difficulty Rogue Special Mode None Game No. 59 Rogue 24 Adventurer 0 Explorer 35 Win Type - Total 1 Types 1/0/0/0/0/0/0/0/0/0 Lore% 31 Gallery% 34 Achievement% 28 Wizard Run 0 Options --------- Layout 1 ASCII 1 Keyboard 1 Movement Vi Keybinds 1 Fullscreen 2 Font 24/Smallcaps Map View 50x40 Zoom Use 0% Tactical HUD 1 Map Filters NONE Filters NONE Steam 0 RUN: b7618008-3dc5-43f0-904f-b7364c062937